bitfinex-derivatives/quotes_SOLF0:USTF0_20240904
["timestamp","ask_amount","ask_price","bid_price","bid_amount"]
[1725471556215,0.05638752,132.84,132.81,0.05677318]
[1725471556608,21.70638752,132.84,132.81,0.05677318]
[1725471557216,25.47944677,132.84,132.81,0.05677318]
[1725471557714,3.7643,132.82,132.81,0.05677318]
[1725471558711,21.65,132.82,132.66,73.571792]
[1725471558907,21.65,132.8,132.69,21.65]
[1725471559307,21.65,132.78,132.69,21.65]
[1725471559511,1.3522,132.77,132.69,25.34951778]
[1725471559713,0.0522401,132.74,132.72,0.0553489]
[1725471559910,3.8190401,132.74,132.72,0.0553489]
[1725471560311,3.8188401,132.74,132.72,0.0553489]
[1725471560513,0.0522401,132.74,132.72,0.0553489]
[1725471561016,0.0522401,132.74,132.73,3.7668]
[1725471561219,0.0522401,132.74,132.72,0.0553489]
[1725471561923,45.5271,132.76,132.64,21.65]
[1725471562111,3.7681,132.69,132.65,7.60846244]
[1725471562318,21.65,132.73,132.62,21.65]
[1725471562626,3.7674,132.71,132.64,21.65]
[1725471562821,22.9971,132.76,132.66,21.65]
[1725471563117,0.05164823,132.72,132.7,0.05641578]
[1725471564320,3.7674,132.71,132.7,0.05641578]
[1725471564617,0.05164823,132.72,132.7,0.05641578]
[1725471564820,3.7674,132.71,132.7,0.05641578]
[1725471565216,0.05164823,132.72,132.7,0.05641578]
[1725471565421,3.81894823,132.72,132.7,0.05641578]
[1725471565620,0.05164823,132.72,132.7,0.05641578]
[1725471565827,0.05164823,132.72,132.7,7.66172102]
[1725471566022,0.05164823,132.72,132.7,0.05641578]
[1725471567020,0.05164823,132.72,132.7,3.8908294]
[1725471567922,0.05164823,132.72,132.71,3.7674]
[1725471568922,3.7657,132.78,132.73,3.7666]
[1725471569130,2.8723,132.84,132.7,3.83441362]
[1725471569131,4.2397,132.84,132.72,21.65]
[1725471569428,3.7646,132.81,132.74,21.65]
[1725471569623,4.2397,132.84,132.75,1.403]
[1725471569923,0.04893611,132.81,132.78,0.04853641]
[1725471570728,0.04893611,132.81,132.79,21.65]
[1725471570927,1.3483,132.89,132.79,25.4549992]
[1725471571124,3.7626,132.88,132.82,21.65]
[1725471571324,1.3483,132.89,132.84,3.7635]
[1725471571523,1.3483,132.89,132.82,25.3593186]
[1725471571727,5.1108,132.89,132.82,25.3593186]
[1725471571927,0.04750792,132.87,132.84,3.8140284]
[1725471572128,0.04750792,132.87,132.84,0.0505284]
[1725471573625,0.04750792,132.87,132.84,21.7005284]
[1725471573831,0.04750792,132.87,132.86,3.7631]
[1725471574729,3.7612,132.93,132.85,1.4181]
[1725471574933,1.3126,132.97,132.87,21.65]
[1725471575133,3.7608,132.95,132.87,21.65]
[1725471575328,24.4553,132.98,132.88,21.65]
[1725471575629,2.8053,132.98,132.88,21.65]
[1725471575837,0.0478437,132.94,132.92,3.8124077]
[1725471576235,0.0478437,132.94,132.92,3.73159602]
[1725471577235,0.0478437,132.94,132.92,7.49279602]
[1725471578044,0.0478437,132.94,132.92,0.0512077]
[1725471578342,0.0478437,132.94,132.92,3.87382961]
[1725471578637,0.0478437,132.94,132.92,0.0512077]
[1725471580033,0.0478437,132.94,132.92,1.4363077]
[1725471580438,0.0478437,132.94,132.93,3.7611]
[1725471580744,0.0478437,132.94,132.92,1.4363077]
[1725471582343,0.0478437,132.94,132.93,3.7611]
[1725471582841,7.7595,132.99,132.95,3.7605]
[1725471583041,4.0,132.99,132.95,21.65]
[1725471583441,4.0,132.99,132.98,3.7597]
[1725471584247,4.0,132.99,132.98,7.53245462]
[1725471585148,0.04986756,133.0,132.99,3.7594]
[1725471585949,0.04986756,133.0,132.99,29.262987]
[1725471586140,0.04986756,133.0,132.99,25.4094]
[1725471586545,0.04986756,133.0,132.99,29.15770801]
[1725471587151,0.04986756,133.0,132.97,0.05148657]
[1725471587350,0.04986756,133.0,132.9,3.80896847]
[1725471587550,21.65,132.99,132.89,21.65]
[1725471587750,21.65,132.99,132.92,3.7612]
[1725471588147,3.7602,132.97,132.89,25.42575575]
[1725471588553,0.04852226,132.94,132.92,0.04990577]
[1725471588853,0.05103951,132.94,132.93,3.7609]
[1725471589954,1.3665,133.0,132.93,21.65]
[1725471590349,5.1259,133.0,132.93,21.65]
[1725471590955,0.05055589,132.98,132.95,0.04985021]
[1725471591249,0.05055589,132.98,132.96,3.7601]
[1725471591455,0.05055589,132.98,132.97,3.70515231]
[1725471592255,0.05055589,132.98,132.97,7.46515231]
[1725471592555,0.05055589,132.98,132.97,3.76]
[1725471592756,0.05055589,132.98,132.97,7.44973298]
[1725471594757,0.05055589,132.98,132.96,3.7601]
[1725471595054,0.05055589,132.98,132.95,0.04985021]
[1725471595860,0.05055589,132.98,132.95,3.81025021]
[1725471596558,3.7602,132.97,132.95,0.04985021]
[1725471596756,0.05055589,132.98,132.95,0.04985021]
[1725471597558,3.7603,132.96,132.95,0.04985021]
[1725471599064,3.7601,132.97,132.95,0.04985021]
[1725471599854,3.81045589,132.98,132.95,0.04985021]
[1725471600466,0.05055589,132.98,132.96,21.65]
[1725471600663,0.05055589,132.98,132.97,3.68879079]
[1725471600857,0.05055589,132.98,132.96,21.65]
[1725471601261,0.05055589,132.98,132.96,25.32591756]
[1725471601660,0.05055589,132.98,132.97,3.76]
[1725471602560,0.05055589,132.98,132.97,25.41]
[1725471602860,2.7531,133.04,133.0,3.759]
[1725471603166,2.7531,133.04,132.99,21.65]
[1725471603167,1.3779,133.04,132.99,21.65]
[1725471603855,0.0533763,133.03,133.0,0.05053341]
[1725471604054,0.0533763,133.03,133.01,3.7586]
[1725471604263,0.0533763,133.03,133.0,0.05053341]
[1725471604464,0.0533763,133.03,133.01,21.65]
[1725471604657,0.0533763,133.03,133.02,3.7586]
[1725471605561,6.6201,133.08,133.05,3.7577]
[1725471605763,6.6201,133.08,133.04,21.65]
[1725471605962,6.6201,133.08,133.04,25.45516873]
[1725471606259,6.6201,133.08,133.04,29.21296873]
[1725471606661,0.04759939,133.07,133.05,0.05002014]
[1725471607366,0.04759939,133.07,133.05,3.80772014]
[1725471607759,0.04759939,133.07,133.05,0.05002014]
[1725471608365,0.04759939,133.07,133.0,21.65]
[1725471608965,3.80489939,133.07,133.03,3.7583]
[1725471609165,0.04759939,133.07,133.03,3.7583]
[1725471609361,0.04759939,133.07,133.04,0.05318261]
[1725471609660,0.04759939,133.07,133.06,3.7575]
[1725471612161,1.3493,133.12,133.05,21.65]
[1725471612358,1.3493,133.12,133.08,21.65]
[1725471612765,5.1051,133.12,133.08,25.4066]
[1725471613169,0.05127938,133.11,133.09,0.05019357]
[1725471613466,0.05127938,133.11,133.09,3.80679357]
[1725471613966,0.05127938,133.11,133.09,0.05019357]
[1725471615064,0.05127938,133.11,133.03,3.73148913]
[1725471615065,21.70127938,133.11,133.03,3.73148913]
[1725471615266,44.26,133.11,133.01,21.65]
[1725471615463,44.26,133.11,133.02,3.7584]
[1725471615662,44.26,133.11,133.03,3.78447433]
[1725471615862,1.3493,133.12,133.03,21.65]
[1725471616077,0.05588967,133.09,133.06,3.80907843]
[1725471616370,3.7572,133.07,133.06,0.05177843]
[1725471616571,0.05588967,133.09,133.06,0.05177843]
[1725471616761,0.05588967,133.09,133.06,3.81182953]
[1725471617772,0.05588967,133.09,133.06,7.56912953]
[1725471618777,0.05588967,133.09,133.07,3.7571]
[1725471620072,3.81248967,133.09,133.06,7.56912953]
[1725471620375,3.81248967,133.09,133.06,3.81182953]
[1725471620376,0.05588967,133.09,133.06,3.81182953]
[1725471621273,0.05588967,133.09,133.06,0.05177843]
[1725471621475,21.65,133.09,132.98,21.65]
[1725471621675,21.65,133.07,132.96,25.34166604]
[1725471621974,1.4092,133.06,132.96,25.34166604]
[1725471622171,3.7585,133.03,132.99,3.7593]
[1725471622370,0.05626128,133.02,133.0,0.05524109]
[1725471623266,0.05626128,133.02,133.0,3.81424109]
[1725471623670,0.05626128,133.02,133.0,0.05524109]
[1725471624470,0.05626128,133.02,133.01,3.7589]
[1725471624870,0.05626128,133.02,133.0,21.70524109]
[1725471625079,0.05626128,133.02,133.0,25.46424109]
[1725471625279,0.05626128,133.02,133.0,21.70524109]
[1725471625577,0.05626128,133.02,133.01,3.7589]
[1725471626679,2.75,133.1,133.04,3.7579]
[1725471626879,2.75,133.1,133.05,21.65]
[1725471627281,2.75,133.1,133.05,25.32511087]
[1725471627477,21.65,133.09,132.97,2.6831]
[1725471627688,0.05110018,133.04,133.02,0.04766504]
[1725471627879,0.0514099,133.04,133.02,0.04766504]
[1725471628575,3.8094099,133.04,133.02,0.04766504]
[1725471629986,3.7583,133.03,133.02,0.04766504]
[1725471630377,3.8097099,133.04,133.02,0.04766504]
[1725471630777,0.0514099,133.04,133.02,0.04766504]
[1725471631684,0.0514099,133.04,133.02,3.80626504]
[1725471633986,0.0514099,133.04,133.03,3.7583]
[1725471638688,0.0514099,133.04,133.02,21.69766504]
[1725471638689,2.75,133.1,133.02,21.65]
[1725471638989,2.75,133.1,133.05,21.65]
[1725471639191,1.3903,133.1,133.05,21.65]
[1725471639692,0.04838176,133.09,133.06,3.80650698]
[1725471639992,0.04838176,133.09,133.06,0.04920698]
[1725471640187,0.04838176,133.09,133.08,3.7569]
[1725471640393,0.04838176,133.09,133.08,7.55246178]
[1725471640594,0.04838176,133.09,133.08,3.7569]
[1725471641087,0.04838176,133.09,133.08,7.52615851]
[1725471646097,1.4337,133.14,133.11,3.7559]
[1725471646485,1.4337,133.14,133.1,21.65]
[1725471646693,1.385,133.15,133.1,21.65]
[1725471646694,1.385,133.15,133.13,3.7555]
[1725471647196,1.44076171,133.15,133.13,3.81185642]
[1725471647596,0.05576171,133.15,133.13,3.81185642]
[1725471647990,0.05576171,133.15,133.14,3.7552]
[1725471650101,3.81086171,133.15,133.13,0.05635642]
[1725471650296,0.05576171,133.15,133.13,0.05635642]
[1725471652301,0.05576171,133.15,133.14,3.7552]
[1725471652599,0.05576171,133.15,133.14,21.0652]
[1725471653603,0.05576171,133.15,133.14,17.31]
[1725471654001,0.05576171,133.15,133.14,21.63]
[1725471654201,0.05576171,133.15,133.14,25.3852]
[1725471654408,1.411,133.2,133.14,21.63]
[1725471654604,1.411,133.2,133.16,21.63]
[1725471654901,5.1645,133.2,133.16,25.3845]
[1725471655110,5.1645,133.2,133.16,21.63]
[1725471655405,5.1645,133.2,133.17,0.05399902]
[1725471655999,1.411,133.2,133.18,3.7538]
[1725471656401,1.411,133.2,133.17,0.05399902]
[1725471656606,1.411,133.2,133.17,3.80819902]
[1725471657205,1.411,133.2,133.18,3.7541]
[1725471657405,1.411,133.2,133.17,0.05399902]
[1725471657608,6.4671,133.22,133.17,0.05399902]
[1725471657906,2.714,133.22,133.17,0.05399902]
[1725471659307,3.7541,133.18,133.17,0.05399902]
[1725471659704,3.7545,133.17,133.12,21.63]
[1725471660002,44.24,133.21,133.12,21.63]
[1725471660199,3.7543,133.18,133.12,25.34818337]
[1725471660409,2.714,133.22,133.14,21.63]
[1725471660705,0.0515815,133.19,133.18,3.7541]
[1725471661111,0.0515815,133.19,133.18,25.3841]
[1725471661407,0.0515815,133.19,133.18,29.08088429]
[1725471664913,1.3849,133.24,133.22,3.7529]
[1725471665412,5.1489,133.26,133.23,3.7526]
[1725471666003,1.3969,133.26,133.24,3.7522]
[1725471666210,3.7514,133.28,133.23,0.0546294]
[1725471666910,5.08,133.29,133.25,3.7519]
[1725471667103,5.08,133.29,133.26,3.85765758]
[1725471667516,1.3289,133.29,133.26,7.60935758]
[1725471667814,1.3289,133.29,133.26,0.05426445]
[1725471669115,5.08,133.29,133.26,0.05426445]
[1725471669507,1.3289,133.29,133.26,0.05426445]
[1725471669712,22.9589,133.29,133.18,25.32678429]
[1725471669909,45.5689,133.29,133.18,21.63]
[1725471670109,45.5689,133.29,133.21,3.7531]
[1725471670305,45.5689,133.29,133.18,25.40063944]
[1725471670808,3.80893628,133.25,133.22,0.05549615]
[1725471671309,0.05663628,133.25,133.22,0.05549615]
[1725471672017,0.05663628,133.25,133.24,3.7524]
[1725471672609,0.05663628,133.25,133.24,25.3824]
[1725471674016,0.05663628,133.25,133.24,3.7524]
[1725471676015,0.05663628,133.25,133.24,25.3824]
[1725471677211,0.05663628,133.25,133.22,0.05549615]
[1725471677412,0.05663628,133.25,133.18,3.77063944]
[1725471677614,0.05663628,133.25,133.19,3.7537]
[1725471677920,3.7529,133.23,133.19,3.7537]
[1725471678414,0.05210172,133.22,133.2,0.05758379]
[1725471681014,0.05210172,133.22,133.2,3.81098379]
[1725471682620,0.05210172,133.22,133.21,3.7532]
[1725471683219,0.05210172,133.22,133.21,25.3832]
[1725471683423,3.7517,133.27,133.23,3.7525]
[1725471683621,3.7517,133.27,133.23,21.63]
[1725471684311,0.04918142,133.26,133.24,3.80673722]
[1725471685616,0.04918142,133.26,133.25,3.7521]
[1725471688117,0.04918142,133.26,133.25,21.0321]
[1725471691126,1.3442,133.32,133.25,17.28]
[1725471691434,3.7506,133.31,133.27,17.28]
[1725471691722,1.3442,133.32,133.27,17.28]
[1725471692022,5.0945,133.32,133.27,21.11702622]
[1725471692227,0.02431257,133.31,133.28,3.80373459]
[1725471693223,3.77471257,133.31,133.28,3.80373459]
[1725471693730,0.02431257,133.31,133.28,3.80373459]
[1725471693923,0.02431257,133.31,133.29,21.0309]
[1725471694723,17.28,133.3,133.21,1.3836]
[1725471694929,17.28,133.28,133.2,17.28]
[1725471695125,3.7525,133.24,133.2,21.0334]
[1725471695324,17.28,133.28,133.2,21.0334]
[1725471695724,0.05507227,133.25,133.23,0.05459113]
[1725471695924,3.7525,133.24,133.23,0.05459113]
[1725471696627,3.80727227,133.25,133.23,0.05459113]
[1725471697134,0.05507227,133.25,133.23,0.05459113]
[1725471698425,0.05507227,133.25,133.24,25.3624]
[1725471699021,0.05507227,133.25,133.23,0.05459113]
[1725471699531,3.80727227,133.25,133.23,0.05459113]
[1725471699732,0.05507227,133.25,133.23,0.05459113]
[1725471700827,0.05507227,133.25,133.23,3.80709113]
[1725471701027,0.05507227,133.25,133.23,0.05459113]
[1725471701325,0.05507227,133.25,133.24,25.3624]
[1725471705337,1.3764,133.28,133.26,3.7518]
[1725471705538,1.3764,133.28,133.24,21.61]
[1725471705834,1.3764,133.28,133.25,3.7519]
[1725471706224,1.39827489,133.28,133.25,3.80681834]
[1725471706428,5.14957489,133.28,133.25,3.80681834]
[1725471707030,3.7518,133.26,133.25,0.05491834]
[1725471708431,3.7516,133.27,133.25,0.05491834]
[1725471708635,1.39827489,133.28,133.25,3.80701834]
[1725471708831,1.39827489,133.28,133.25,0.05491834]
[1725471709039,5.14957489,133.28,133.25,0.05491834]
[1725471709341,1.39827489,133.28,133.25,3.80681834]
[1725471710338,3.7516,133.27,133.25,0.05491834]
[1725471710841,5.14967489,133.28,133.25,3.80691834]
[1725471711035,0.02187489,133.28,133.25,0.05491834]
[1725471711235,0.02187489,133.28,133.26,25.3617]
[1725471711535,0.02187489,133.28,133.26,21.61]
[1725471712243,0.02187489,133.28,133.27,3.80919646]
[1725471712743,0.02187489,133.28,133.26,21.61]
[1725471713544,2.7104,133.32,133.26,21.61]
[1725471713945,6.4607,133.32,133.29,3.7509]
[1725471714137,6.4607,133.32,133.29,7.58550074]
[1725471714337,3.7495,133.35,133.31,3.7503]
[1725471714537,3.7495,133.35,133.32,0.05273893]
[1725471714940,3.7495,133.35,133.33,3.68640904]
[1725471715146,2.7963,133.37,133.33,3.68640904]
[1725471715443,2.7963,133.37,133.34,3.7494]
[1725471715638,6.5452,133.37,133.34,7.59300479]
[1725471715840,6.5452,133.37,133.34,3.7494]
[1725471716444,6.5452,133.37,133.34,7.41404925]
[1725471717245,2.7963,133.37,133.35,3.7491]
[1725471717942,228.0,133.43,133.36,21.61]
[1725471718149,1.4404,133.41,133.38,0.05456561]
[1725471718643,3.748,133.4,133.38,0.05456561]
[1725471719242,3.7482,133.39,133.38,0.05456561]
[1725471721244,1.4404,133.41,133.38,0.05456561]
[1725471721449,3.7479,133.4,133.38,0.05456561]
[1725471722448,1.4404,133.41,133.32,21.61]
[1725471722744,27.85720965,133.41,133.32,21.61]
[1725471722953,45.6604,133.41,133.33,3.7497]
[1725471723154,45.6604,133.41,133.27,1.3807]
[1725471723155,44.22,133.39,133.27,1.3807]
[1725471723345,7.496,133.4,133.32,0.04995986]
[1725471723346,0.04787402,133.34,133.32,0.04995986]
[1725471723541,0.04787402,133.34,133.22,2.7652]
[1725471723542,2.7626,133.35,133.26,21.61]
[1725471723845,0.04972974,133.34,133.29,0.04952333]
[1725471724547,26.38647287,133.34,133.26,3.66635001]
[1725471724852,26.43914885,133.34,133.27,17.3]
[1725471725048,26.43914885,133.34,133.27,21.12202172]
[1725471725252,3.751,133.3,133.27,17.3]
[1725471725749,0.05710514,133.3,133.27,0.05377824]
[1725471725945,0.05710514,133.3,133.24,17.3]
[1725471726151,51.743,133.32,133.21,22.9623]
[1725471726345,3.7521,133.26,133.22,3.7529]
[1725471726944,0.05000102,133.25,133.23,0.04777174]
[1725471727146,0.05000102,133.25,133.23,3.80037174]
[1725471727747,0.05000102,133.25,133.24,3.7524]
[1725471727955,0.05000102,133.25,133.24,25.3624]
[1725471729953,0.05000102,133.25,133.23,3.80027174]
[1725471730151,0.05000102,133.25,133.23,0.04777174]
[1725471730347,0.05000102,133.25,133.23,21.65777174]
[1725471730750,3.82914885,133.34,133.23,21.61]
[1725471730957,2.7626,133.35,133.26,21.61]
[1725471731156,1.4381,133.34,133.29,21.61]
[1725471731344,1.4381,133.34,133.29,25.3608]
[1725471731345,3.7501,133.32,133.29,25.3608]
[1725471731748,0.05641414,133.32,133.29,21.6653709]
[1725471732250,0.05641414,133.32,133.29,0.0553709]
[1725471732546,3.7507,133.3,133.29,0.0553709]
[1725471732751,0.05641414,133.32,133.29,0.0553709]
[1725471733152,3.7506,133.31,133.29,0.0553709]
[1725471734755,3.7506,133.31,133.29,3.8063709]
[1725471735445,3.7506,133.31,133.29,0.0553709]
[1725471735650,3.80671414,133.32,133.29,0.0553709]
[1725471736252,3.7506,133.31,133.29,0.0553709]
[1725471739761,0.05641414,133.32,133.29,0.0553709]
[1725471740255,0.05641414,133.32,133.29,21.6653709]
[1725471740856,0.05641414,133.32,133.31,3.7504]
[1725471741151,0.05641414,133.32,133.31,25.3604]
[1725471745354,2.7947,133.39,133.34,3.7495]
[1725471746464,3.7489,133.37,133.35,0.0566571]
[1725471746666,0.05145202,133.38,133.35,0.0566571]
[1725471747066,3.80005202,133.38,133.35,3.8057571]
[1725471747262,0.05145202,133.38,133.35,0.0566571]
[1725471747462,3.7488,133.37,133.35,0.0566571]
[1725471747662,0.05145202,133.38,133.35,0.0566571]
[1725471748556,3.749,133.36,133.35,0.0566571]
[1725471748757,0.05145202,133.38,133.29,21.61]
[1725471748956,21.61,133.38,133.29,21.61]
[1725471749668,3.7493,133.35,133.32,3.75]
[1725471749863,3.79939414,133.35,133.32,3.80595045]
[1725471750475,3.7496,133.34,133.32,3.80595045]
[1725471750968,3.7496,133.34,133.32,0.05595045]
[1725471751164,3.79959414,133.35,133.32,0.05595045]
[1725471751664,3.79959414,133.35,133.32,3.80605045]
[1725471752677,3.79959414,133.35,133.32,0.05595045]
[1725471754370,3.7496,133.34,133.32,0.05595045]
[1725471755360,3.71052434,133.34,133.27,17.29]
[1725471755561,17.29,133.32,133.23,1.4047]
[1725471755759,17.29,133.3,133.22,17.29]
[1725471755964,3.7521,133.25,133.22,24.87336952]
[1725471756165,3.77616868,133.29,133.22,24.87336952]
[1725471756464,3.752,133.26,133.24,0.05376052]
[1725471758268,3.7521,133.25,133.24,0.05376052]
[1725471758971,1.3695,133.26,133.16,21.61]
[1725471759164,1.4209,133.25,133.16,21.61]
[1725471759365,3.7528,133.23,133.19,3.7536]
[1725471759667,3.7528,133.23,133.19,3.69951959]
[1725471759867,0.0479799,133.22,133.2,0.0501493]
[1725471760070,0.0479799,133.22,133.2,21.6601493]
[1725471760666,0.0479799,133.22,133.21,3.71791022]
[1725471760872,0.0479799,133.22,133.21,1.54131022]
[1725471761067,3.7547,133.16,133.13,21.61]
[1725471761369,27.7436298,133.21,133.13,21.61]
[1725471761565,49.3536298,133.21,133.1,22.9481]
[1725471762077,0.05598051,133.17,133.14,0.05412221]
[1725471762672,3.7548,133.16,133.14,0.05412221]
[1725471762972,3.7548,133.16,133.08,2.7085]
[1725471762973,0.05598051,133.17,132.98,79.07790264]
[1725471763172,3.70230401,133.16,133.07,21.61]
[1725471763477,22.61,133.14,133.03,21.61]
[1725471763677,7.523,133.18,133.03,21.61]
[1725471763678,22.61,133.12,133.03,21.61]
[1725471763878,3.7571,133.08,133.03,25.3681]
[1725471764180,0.05020672,133.07,133.04,0.0531536]
[1725471765279,0.05020672,133.07,133.04,3.8111536]
[1725471765878,0.05020672,133.07,133.05,25.3677]
[1725471766379,0.05020672,133.07,133.05,21.61]
[1725471766569,1.434,133.14,133.05,21.61]
[1725471766778,1.3808,133.18,133.11,21.61]
[1725471766976,3.7547,133.16,133.11,29.08217621]
[1725471767175,2.8148,133.18,133.11,25.3659]
[1725471767572,0.05330109,133.16,133.13,0.04768024]
[1725471767776,3.80800109,133.16,133.13,0.04768024]
[1725471768175,0.05330109,133.16,133.13,0.04768024]
[1725471769085,3.80800109,133.16,133.13,0.04768024]
[1725471769584,0.05330109,133.16,133.13,3.80308024]
[1725471770087,0.05330109,133.16,133.14,3.755]
[1725471770781,0.05330109,133.16,133.15,3.7549]
[1725471770987,0.05330109,133.16,133.15,25.3649]
[1725471771284,1.4344,133.22,133.15,25.3649]
[1725471771285,1.4344,133.22,133.15,21.61]
[1725471771785,3.7534,133.21,133.17,3.7542]
[1725471772183,0.05072006,133.2,133.18,0.05405638]
[1725471774992,0.05072006,133.2,133.18,3.80805638]
[1725471775698,0.05072006,133.2,133.18,0.05405638]
[1725471777393,0.05072006,133.2,133.18,3.80795638]
[1725471777995,0.05072006,133.2,133.18,0.05405638]
[1725471779095,3.80422006,133.2,133.18,0.05405638]
[1725471779304,0.05072006,133.2,133.18,0.05405638]
[1725471781192,0.05072006,133.2,133.18,3.80805638]
[1725471781994,0.05072006,133.2,133.18,0.05405638]
[1725471783397,3.80422006,133.2,133.18,0.05405638]
[1725471784899,0.05072006,133.2,133.18,3.80815638]
[1725471785695,0.05072006,133.2,133.18,0.05405638]
[1725471786493,0.05072006,133.2,133.19,25.3638]
[1725471787095,5.084,133.25,133.21,3.7532]
[1725471787303,1.315,133.28,133.21,21.61]
[1725471787498,3.7521,133.26,133.21,21.61]
[1725471787901,3.7521,133.26,133.22,3.7528]
[1725471788096,0.05079906,133.25,133.23,0.05493477]
[1725471789303,3.7524,133.24,133.23,0.05493477]
[1725471791498,3.80309906,133.25,133.23,0.05493477]
[1725471792009,0.05079906,133.25,133.23,21.66493477]
[1725471792301,0.05079906,133.25,133.24,21.61]
[1725471792802,0.05079906,133.25,133.24,3.7524]
[1725471796798,0.05079906,133.25,133.23,7.49617652]
[1725471797399,0.05079906,133.25,133.24,21.61]
[1725471797604,0.05079906,133.25,133.24,25.3624]
[1725471797908,0.05079906,133.25,133.24,21.61]
[1725471798206,0.05079906,133.25,133.23,7.49607652]
[1725471799906,0.05079906,133.25,133.23,24.77607652]
[1725471800105,0.05079906,133.25,133.23,21.02357652]
[1725471800306,0.05079906,133.25,133.23,0.05493477]
[1725471801405,3.7524,133.24,133.23,0.05493477]
[1725471801907,3.73830844,133.25,133.06,243.28]
[1725471802114,39.89,133.23,133.15,17.28]
[1725471802405,39.89,133.23,133.15,20.99941149]
[1725471803008,0.05672195,133.2,133.18,0.05045314]
[1725471803204,3.7538,133.19,133.18,0.05318996]
[1725471804506,5.1577,133.19,133.18,0.05318996]
[1725471805113,1.4039,133.19,133.12,3.7556]
[1725471805317,2.73,133.19,133.11,21.64]
[1725471806108,3.81045473,133.16,133.14,0.05044374]
[1725471806507,0.05565473,133.16,133.14,0.05044374]
[1725471806713,3.7549,133.15,133.14,0.05044374]
[1725471807816,0.05565473,133.16,133.14,0.05044374]
[1725471808420,0.05565473,133.16,133.15,3.7549]
[1725471811515,26.6477,133.23,133.07,1.3059]
[1725471811725,3.7546,133.17,133.07,5.10461885]
[1725471811915,22.61,133.21,133.11,25.396]
[1725471812418,3.7548,133.16,133.11,25.396]
[1725471812719,0.05096014,133.17,133.12,0.04806851]
[1725471812917,3.7554,133.14,133.13,0.05059839]
[1725471814914,3.8045946,133.15,133.13,0.05059839]
[1725471815621,0.0494946,133.15,133.13,0.05059839]
[1725471816416,0.0494946,133.15,133.14,3.66538952]
[1725471816612,0.0494946,133.15,133.13,0.05059839]
[1725471816928,0.0494946,133.15,133.14,3.69919615]
[1725471817216,0.0494946,133.15,133.13,0.05059839]
[1725471817423,3.8045946,133.15,133.13,0.05059839]
[1725471818917,0.0494946,133.15,133.07,3.84602917]
[1725471819120,1.4042,133.15,133.08,21.64]
[1725471819423,3.7556,133.13,133.1,3.7562]
[1725471819623,3.7556,133.13,133.11,3.76070245]
[1725471820016,3.7556,133.13,133.11,0.0542839]
[1725471820017,3.7558,133.12,133.11,0.0542839]
[1725471822916,0.05229153,133.13,133.11,0.0542839]
[1725471823316,3.80789153,133.13,133.11,0.0542839]
[1725471824028,0.05229153,133.13,133.11,0.0542839]
[1725471824623,22.66229153,133.13,133.04,2.7295]
[1725471824823,22.61,133.13,133.04,6.56035889]
[1725471825120,22.61,133.13,133.04,2.7295]
[1725471825322,3.7565,133.1,133.07,3.7571]
[1725471825830,3.81079164,133.1,133.07,3.80927706]
[1725471826230,0.05429164,133.1,133.07,21.69217706]
[1725471826732,0.05429164,133.1,133.09,3.7566]
[1725471828333,0.05429164,133.1,133.09,25.3966]
[1725471835737,0.05429164,133.1,133.08,3.7567]
[1725471835943,0.05429164,133.1,133.07,0.05217706]
[1725471836633,3.7569,133.09,133.07,0.05217706]
[1725471837939,5.24279164,133.1,133.07,0.05217706]
[1725471840144,3.7566,133.09,133.07,0.05217706]
[1725471840547,1.48629164,133.1,133.07,3.80937706]
[1725471840735,1.48629164,133.1,133.07,0.05217706]
[1725471841242,3.7569,133.08,133.07,0.05217706]
[1725471841444,49.44811603,133.1,133.0,21.63]
[1725471841747,45.672,133.1,133.01,3.83511197]
[1725471842045,45.672,133.1,133.02,3.7585]
[1725471842235,49.44811603,133.1,133.02,3.7585]
[1725471842440,21.63,133.06,133.05,0.05282932]
[1725471842640,21.63,133.06,133.04,0.05472269]
[1725471842848,21.63,133.06,133.01,3.7588]
[1725471842849,3.7583,133.03,133.01,3.7588]
[1725471843042,3.81592947,133.03,133.01,3.81446029]
[1725471843346,0.05762947,133.03,133.01,3.81446029]